bitfinex-derivatives/quotes_BNBF0:USTF0_20250401
["timestamp","ask_amount","ask_price","bid_price","bid_amount"]
[1743540417941,0.3018605,609.57,608.32,1.23309435]
[1743540418140,0.3018605,609.56,608.32,1.23309435]
[1743540418441,0.28580463,609.58,608.32,1.23309435]
[1743540418442,0.3018605,609.55,608.32,1.23309435]
[1743540418744,0.3018605,609.54,608.31,0.32877973]
[1743540418935,0.3018605,609.57,608.31,0.32877973]
[1743540419138,0.3018605,609.56,608.31,0.32877973]
[1743540419340,0.3018605,609.55,608.31,0.32877973]
[1743540419540,0.28580463,609.58,608.31,0.32877973]
[1743540419541,0.3018605,609.57,608.31,0.32877973]
[1743540419742,0.3018605,609.56,608.31,0.32877973]
[1743540420044,0.30185769,609.55,608.31,0.32877973]
[1743540420341,0.30185769,609.54,608.31,0.32877973]
[1743540420542,0.30185769,609.53,608.31,0.32877973]
[1743540420742,0.30185769,609.52,608.31,0.32877973]
[1743540420942,0.30185769,609.51,608.31,0.32877973]
[1743540421250,0.30185764,609.5,608.31,0.32877973]
[1743540421445,0.30185764,609.51,608.31,0.32877973]
[1743540421641,0.30185764,609.5,608.31,0.32877973]
[1743540421843,0.30185764,609.49,608.31,0.32877973]
[1743540422845,0.30185422,609.48,608.31,0.32877973]
[1743540423145,0.30185422,609.47,608.31,0.32877973]
[1743540423342,0.30185422,609.49,608.31,0.32877973]
[1743540423539,0.30185422,609.48,608.31,0.32877973]
[1743540423741,0.30185422,609.47,608.31,0.32877973]
[1743540423941,0.30185422,609.49,608.31,0.32877973]
[1743540424144,0.28582927,609.47,608.31,0.32877973]
[1743540424344,0.30185422,609.46,608.31,0.32877973]
[1743540425946,0.30185737,609.45,608.31,0.32877973]
[1743540426145,0.30185737,609.46,608.31,0.32877973]
[1743540426346,0.30185737,609.45,608.31,0.32877973]
[1743540426551,0.30185737,609.46,608.31,0.32877973]
[1743540426842,0.30185737,609.45,608.31,0.32877973]
[1743540427052,0.28585862,609.45,608.31,0.32877973]
[1743540427347,0.30185737,609.44,608.31,0.32877973]
[1743540427548,0.30190906,609.43,608.31,0.32877973]
[1743540427743,0.30190906,609.44,608.31,0.32877973]
[1743540428042,0.30190906,609.43,608.31,0.32877973]
[1743540428254,0.30190906,609.42,608.31,0.32877973]
[1743540428444,0.30190906,609.41,608.31,0.32877973]
[1743540428643,0.30190906,609.4,608.31,0.32877973]
[1743540428953,0.28585862,609.45,608.31,0.32877973]
[1743540428954,0.30190906,609.39,608.31,0.32877973]
[1743540429149,0.30190906,609.44,608.31,0.32877973]
[1743540430751,0.30190968,609.43,608.31,0.32877973]
[1743540430950,0.30190968,609.42,608.31,0.32877973]
[1743540431151,0.30190968,609.44,608.31,0.32877973]
[1743540431349,0.30190968,609.43,608.31,0.32877973]
[1743540431549,0.30190968,609.42,608.31,0.32877973]
[1743540431745,0.30190968,609.41,608.31,0.32877973]
[1743540431949,0.30190968,609.4,608.31,0.32877973]
[1743540432146,0.30190968,609.44,608.31,0.32877973]
[1743540432952,0.30190968,609.43,608.31,0.32877973]
[1743540433258,0.30190968,609.42,608.31,0.32877973]
[1743540437457,1.243,609.41,608.31,0.32877973]
[1743540437656,0.30190968,609.4,608.31,0.32877973]
[1743540438257,0.961,609.39,608.31,0.32877973]
[1743540438556,0.3018207,609.38,608.31,0.32877973]
[1743540438956,0.961,609.39,608.31,0.32877973]
[1743540440157,0.28582927,609.38,608.31,0.32877973]
[1743540440359,0.58762912,609.38,608.31,0.32877973]
[1743540440658,0.30179985,609.37,608.31,0.32877973]
[1743540441952,0.30179985,609.38,608.31,0.32877973]
[1743540442152,0.28581988,609.36,608.31,0.32877973]
[1743540442351,0.30179985,609.35,608.31,0.32877973]
[1743540442755,0.30179985,609.35,608.36,1.23309435]
[1743540442954,0.30179985,609.35,608.37,0.3287473]
[1743540443458,0.30180906,609.34,608.37,0.3287473]
[1743540443657,0.30180906,609.33,608.37,0.3287473]
[1743540445055,0.30179985,609.32,608.37,0.3287473]
[1743540445259,0.28580697,609.32,608.37,0.3287473]
[1743540445560,0.30179985,609.31,608.37,0.3287473]
[1743540446461,0.28580697,609.32,608.37,0.3287473]
[1743540446663,0.3018003,609.31,608.37,0.3287473]
[1743540447961,0.3018003,609.33,608.37,0.3287473]
[1743540448260,0.28581519,609.3,608.37,0.3287473]
[1743540448455,0.3018003,609.29,608.37,0.3287473]
[1743540449253,0.28581519,609.3,608.37,0.3287473]
[1743540450756,1.142,609.34,608.37,0.3287473]
[1743540450959,0.28581049,609.3,608.37,0.3287473]
[1743540456764,1.142,609.34,608.37,0.3287473]
[1743540457163,0.28577881,609.31,608.37,0.3287473]
[1743540458957,0.753,609.3,608.37,0.3287473]
[1743540461765,0.807,609.29,608.37,0.3287473]
[1743540472172,0.28581519,609.28,608.37,0.3287473]
[1743540474877,0.807,609.29,608.37,0.3287473]
[1743540475079,0.28583749,609.27,608.37,0.3287473]
[1743540476677,0.30184355,609.26,608.37,0.3287473]
[1743540477684,1.40784853,609.25,608.37,0.3287473]
[1743540477983,0.30184853,609.24,608.37,0.3287473]
[1743540481284,0.2858962,609.23,608.37,0.3287473]
[1743540481487,0.30184853,609.22,608.37,0.3287473]
[1743540481783,0.2858962,609.23,608.37,0.3287473]
[1743540481981,0.30191568,609.22,608.37,0.3287473]
[1743540483486,0.30194929,609.21,608.37,0.3287473]
[1743540483785,0.30194929,609.22,608.37,0.3287473]
[1743540483986,0.28594788,609.2,608.37,0.3287473]
[1743540484184,0.30194929,609.19,608.37,0.3287473]
[1743540484988,0.30194706,609.18,608.37,0.3287473]
[1743540485180,0.28594788,609.2,608.37,0.3287473]
[1743540485181,0.30194706,609.17,608.37,0.3287473]
[1743540485486,0.30194706,609.16,608.37,0.3287473]
[1743540486487,0.30194915,609.15,608.37,0.3287473]
[1743540486687,0.30194915,609.14,608.37,0.3287473]
[1743540486982,0.30194915,609.13,608.37,0.3287473]
[1743540487186,0.30194915,609.12,608.37,0.3287473]
[1743540487385,0.28596668,609.14,608.37,0.3287473]
[1743540487587,0.30194915,609.13,608.37,0.3287473]
[1743540487985,0.28596668,609.14,608.37,0.3287473]
[1743540488186,0.30194887,609.13,608.37,0.3287473]
[1743540489993,0.30194887,609.12,608.37,0.3287473]
[1743540490190,0.30194887,609.11,608.37,0.3287473]
[1743540491296,0.30194163,609.1,608.37,0.3287473]
[1743540491495,0.30194163,609.11,608.37,0.3287473]
[1743540491693,0.30194163,609.1,608.37,0.3287473]
[1743540491896,0.30194163,609.11,608.37,0.3287473]
[1743540492199,0.30194163,609.1,608.37,0.3287473]
[1743540492395,0.30194163,609.09,608.37,0.3287473]
[1743540492700,0.866,609.17,608.37,0.3287473]
[1743540492892,0.30194427,609.16,608.37,0.3287473]
[1743540493097,0.28600428,609.08,608.37,0.3287473]
[1743540493395,0.30194427,609.07,608.37,0.3287473]
[1743540493596,0.30194427,609.06,608.37,0.3287473]
[1743540495501,0.874,609.05,608.37,0.3287473]
[1743540495696,0.30194427,609.04,608.37,0.3287473]
[1743540496195,0.5879415,609.04,608.37,0.3287473]
[1743540496400,0.30194427,609.03,608.37,0.3287473]
[1743540498598,0.28599723,609.04,608.37,0.3287473]
[1743540498799,0.874,609.05,608.37,0.3287473]
[1743540499199,0.2859702,609.03,608.37,0.3287473]
[1743540501804,0.96,609.02,608.37,0.3287473]
[1743540503803,0.30191872,609.01,608.37,0.3287473]
[1743540504103,0.96,609.02,608.37,0.3287473]
[1743540508309,0.28595023,609.01,608.37,0.3287473]
[1743540510811,0.96,609.02,608.37,0.3287473]
[1743540511303,0.28594201,609.0,608.37,0.3287473]
[1743540513811,0.96,609.02,608.37,0.3287473]
[1743540514111,0.28594083,608.99,608.37,0.3287473]
[1743540515211,0.822,608.98,608.37,0.3287473]
[1743540517407,1.10792439,608.98,608.37,0.3287473]
[1743540517611,0.822,608.98,608.37,0.3287473]
[1743540521211,1.079,608.97,608.37,0.3287473]
[1743540532212,0.822,608.98,608.37,0.3287473]
[1743540533918,1.257,608.97,608.37,0.3287473]
[1743540535721,0.958,608.96,608.37,0.3287473]
[1743540542624,1.102,608.95,608.37,0.3287473]
[1743540560340,1.971,608.95,608.37,0.3287473]
[1743540562047,2.72,608.95,608.37,0.3287473]
[1743540575155,2.72,608.95,608.4,1.23309435]
[1743540575352,2.72,608.95,608.41,0.32872569]
[1743540595167,0.28593496,608.94,608.41,0.32872569]
[1743540597766,2.50824296,610.25,608.41,0.32872569]
[1743540597963,0.686,608.94,608.41,0.32872569]
[1743540598568,2.645,608.94,608.41,0.32872569]
[1743540601471,2.93095023,608.94,608.41,0.32872569]
[1743540603974,2.645,608.94,608.41,0.32872569]
[1743540604172,2.93095258,608.94,608.41,0.32872569]
[1743540606977,2.645,608.94,608.41,0.32872569]
[1743540607275,2.93093966,608.94,608.41,0.32872569]
[1743540609876,2.645,608.94,608.41,0.32872569]
[1743540610277,2.93094906,608.94,608.41,0.32872569]
[1743540612885,2.645,608.94,608.41,0.32872569]
[1743540613276,2.93095493,608.94,608.41,0.32872569]
[1743540615785,2.645,608.94,608.41,0.32872569]
[1743540616184,2.9309608,608.94,608.41,0.32872569]
[1743540618782,2.645,608.94,608.41,0.32872569]
[1743540619285,0.2859561,608.93,608.41,0.32872569]
[1743540619885,0.2859561,608.93,607.97,1.23309435]
[1743540620085,0.2859561,608.93,607.98,0.32895818]
[1743540621485,0.2859561,608.93,608.02,1.23309435]
[1743540621681,0.2859561,608.93,608.03,0.32893113]
[1743540621885,2.645,608.94,608.03,0.32893113]
[1743540622081,0.28597373,608.92,608.03,0.32893113]
[1743540623087,0.28597373,608.92,608.04,1.23309435]
[1743540623288,0.28597373,608.92,608.05,0.32892031]
[1743540624891,1.959,608.94,608.05,0.32892031]
[1743540625088,1.959,608.94,608.08,1.23309435]
[1743540625293,0.28597138,608.91,608.09,0.32889868]
[1743540626388,0.697,608.9,608.09,0.32889868]
[1743540627589,0.697,608.9,608.1,1.23309435]
[1743540628898,0.697,608.9,608.11,0.32888786]
[1743540629798,0.697,608.9,608.2,1.23309435]
[1743540630197,1.073,608.89,608.2,1.23309435]
[1743540632194,1.073,608.89,601.33,9.81616631]
[1743540632195,1.073,608.89,608.21,0.32883379]
[1743540641009,1.009,608.88,608.21,0.32883379]
[1743540643720,0.972,608.87,608.21,0.32883379]
[1743540649317,0.972,608.87,608.21,1.56192814]
[1743540651121,0.972,608.87,608.22,1.23309435]
[1743540651318,0.972,608.87,608.23,0.32882297]
[1743540654819,1.009,608.88,608.23,0.32882297]
[1743540657921,1.136,608.87,608.23,0.32882297]
[1743540658422,1.136,608.87,608.3,1.23309435]
[1743540658621,1.136,608.87,608.31,0.32877973]
[1743540659422,1.187,608.86,608.31,0.32877973]
[1743540665033,1.187,608.86,608.38,1.23309435]
[1743540665332,1.187,608.86,608.39,0.3287365]
[1743540674036,0.04936976,608.88,608.39,0.3287365]
[1743540674335,0.28577177,609.61,608.39,0.3287365]
[1743540675940,0.69732278,611.18,608.39,0.3287365]
[1743540676138,0.28560291,609.63,608.39,0.3287365]
[1743540676437,0.69732278,611.19,608.39,0.3287365]
[1743540676643,0.30158514,610.22,608.39,0.3287365]
[1743540676837,0.28560408,609.63,608.39,0.3287365]
[1743540677032,0.32775601,610.21,608.39,0.3287365]
[1743540677237,0.30158514,610.2,608.39,0.3287365]
[1743540677432,0.28560525,609.63,608.39,0.3287365]
[1743540677636,0.32776676,610.19,608.39,0.3287365]
[1743540677939,0.28561931,609.63,608.39,0.3287365]
[1743540678438,0.861,609.79,608.39,0.3287365]
[1743540678631,0.28566621,609.63,608.39,0.3287365]
[1743540678831,0.861,609.79,608.39,0.3287365]
[1743540679039,0.30158574,609.78,608.39,0.3287365]
[1743540679239,0.28566738,609.63,608.39,0.3287365]
[1743540679435,0.861,609.79,608.39,0.3287365]
[1743540679631,0.30158415,609.78,608.39,0.3287365]
[1743540679935,0.28566738,609.63,608.39,0.3287365]
[1743540680139,0.861,609.79,608.39,0.3287365]
[1743540680439,0.28566855,609.63,608.39,0.3287365]
[1743540680737,0.861,609.79,608.39,0.3287365]
[1743540680939,0.28566972,609.63,608.39,0.3287365]
[1743540681338,0.861,609.79,608.39,0.3287365]
[1743540681542,0.28565448,609.69,608.39,0.3287365]
[1743540681943,0.861,609.79,608.39,0.3287365]
[1743540682145,0.28565448,609.69,608.39,0.3287365]
[1743540682444,0.861,609.79,608.39,0.3287365]
[1743540685258,0.28567207,609.78,608.39,0.3287365]
[1743540687761,0.861,609.79,608.39,0.3287365]
[1743540694166,0.2856369,609.78,608.39,0.3287365]
[1743540695767,0.30157175,609.77,608.39,0.3287365]
[1743540698567,0.2856369,609.78,608.39,0.3287365]
[1743540698765,1.176,609.76,608.39,0.3287365]
[1743540699469,0.30157354,609.75,608.39,0.3287365]
[1743540699669,0.30157354,609.75,608.44,1.23309435]
[1743540699869,0.30157354,609.75,608.46,0.32869868]
[1743540700269,0.28564276,609.74,608.46,0.32869868]
[1743540700466,1.45064276,609.74,608.46,0.32869868]
[1743540702676,0.813,609.73,608.46,0.32869868]
[1743540703376,0.28573775,609.72,608.46,0.32869868]
[1743540708980,0.813,609.73,608.46,0.32869868]
[1743540709183,0.28571311,609.71,608.46,0.32869868]
[1743540710479,0.30162924,609.7,608.46,0.32869868]
[1743540711079,0.30162794,609.69,608.46,0.32869868]
[1743540711280,0.30162794,609.68,608.46,0.32869868]
[1743540711480,0.30162794,609.67,608.46,0.32869868]
[1743540711685,0.28571311,609.71,608.46,0.32869868]
[1743540711987,0.30163109,609.7,608.46,0.32869868]
[1743540712182,0.28568497,609.7,608.46,0.32869868]
[1743540712384,0.30163109,609.69,608.46,0.32869868]
[1743540712586,0.28568497,609.7,608.46,0.32869868]
[1743540712787,0.30162011,609.69,608.46,0.32869868]
[1743540712986,0.30162011,609.69,608.48,1.23309435]
[1743540713186,0.30162011,609.69,608.5,0.32867707]
[1743540713587,0.28568497,609.7,608.5,0.32867707]
[1743540714284,0.30164524,609.69,608.5,0.32867707]
[1743540715083,0.30164524,609.68,608.5,0.32867707]
[1743540715286,0.28567559,609.68,608.5,0.32867707]
[1743540715483,0.30164524,609.67,608.5,0.32867707]
[1743540715683,0.28567559,609.68,608.5,0.32867707]
[1743540715888,0.30164903,609.67,608.5,0.32867707]
[1743540718193,0.30164903,609.72,608.5,0.32867707]
[1743540718396,0.28568731,609.66,608.5,0.32867707]
[1743540718694,0.30164903,609.65,608.5,0.32867707]
[1743540721087,0.30164903,609.72,608.5,0.32867707]
[1743540721288,0.28568262,609.64,608.5,0.32867707]
[1743540721489,0.30164903,609.63,608.5,0.32867707]
[1743540721991,0.28570959,609.62,608.5,0.32867707]
[1743540722196,0.30164903,609.61,608.5,0.32867707]
[1743540723698,0.28570959,609.62,608.52,1.23309435]
[1743540723892,0.813,609.73,608.53,0.32866087]
[1743540724096,0.30166105,609.72,608.53,0.32866087]
[1743540724298,0.2856791,609.61,608.53,0.32866087]
[1743540724497,0.813,609.73,608.53,0.32866087]
[1743540724699,0.30165501,609.72,608.53,0.32866087]
[1743540724898,0.28567676,609.6,608.53,0.32866087]
[1743540725100,0.813,609.73,608.53,0.32866087]
[1743540725303,0.3016494,609.72,608.53,0.32866087]
[1743540725503,0.28567324,609.59,608.53,0.32866087]
[1743540725700,0.813,609.73,608.53,0.32866087]
[1743540725900,1.009,609.71,608.53,0.32866087]
[1743540726100,0.28569083,609.58,608.53,0.32866087]
[1743540726300,1.009,609.71,608.53,0.32866087]
[1743540726602,0.285692,609.57,608.53,0.32866087]
[1743540727001,1.009,609.71,608.53,0.32866087]
[1743540727196,0.30164928,609.7,608.53,0.32866087]
[1743540727396,1.009,609.71,608.53,0.32866087]
[1743540727598,0.30164575,609.7,608.53,0.32866087]
[1743540727795,1.009,609.71,608.53,0.32866087]
[1743540728000,0.30164996,609.7,608.53,0.32866087]
[1743540728197,0.285692,609.69,608.53,0.32866087]
[1743540729902,1.009,609.71,608.53,0.32866087]
[1743540730098,0.30165201,609.7,608.53,0.32866087]
[1743540730297,0.58733229,609.7,608.53,0.32866087]
[1743540730504,1.17668028,609.7,608.53,0.32866087]
[1743540731305,0.30165243,609.69,608.53,0.32866087]
[1743540731504,2.09168028,609.7,608.53,0.32866087]
[1743540733009,1.806,609.7,608.53,0.32866087]
[1743540733406,0.28567676,609.69,608.53,0.32866087]
[1743540736109,1.806,609.7,608.53,0.32866087]
[1743540736309,0.28570608,609.68,608.53,0.32866087]
[1743540738905,1.806,609.7,608.53,0.32866087]
[1743540739410,0.28569435,609.67,608.53,0.32866087]
[1743540741912,1.806,609.7,608.53,0.32866087]
[1743540742216,0.28568262,609.66,608.53,0.32866087]
[1743540742817,0.28568262,609.66,608.63,1.23309435]
[1743540743017,0.28568262,609.66,608.64,0.32860147]
[1743540745018,0.891,609.7,608.64,0.32860147]
[1743540745419,0.28564627,609.65,608.64,0.32860147]
[1743540746818,1.124,609.64,608.64,0.32860147]
[1743540748315,0.28565448,609.63,608.64,0.32860147]
[1743540751024,1.124,609.64,608.64,0.32860147]
[1743540751221,1.124,609.64,608.68,1.23309435]
[1743540751420,0.28565331,609.62,608.69,0.32857447]
[1743540752321,1.084,609.61,608.69,0.32857447]
[1743540754420,0.28565683,609.6,608.69,0.32857447]
[1743540755727,0.848,609.59,608.7,1.23309435]
[1743540755927,0.848,609.59,608.71,0.32856368]
[1743540757328,0.28564393,609.58,608.71,0.32856368]
[1743540757929,0.28564393,609.58,608.73,1.23309435]
[1743540759424,0.28564393,609.58,608.71,0.32856368]
[1743540760028,0.848,609.59,608.71,0.32856368]
[1743540760430,0.28569669,609.57,608.71,0.32856368]
[1743540762933,0.848,609.59,608.71,0.32856368]
[1743540763328,0.28569787,609.56,608.71,0.32856368]
[1743540765034,0.726,609.55,608.71,0.32856368]
[1743540772433,0.28569787,609.54,608.71,0.32856368]
[1743540775140,0.726,609.55,608.71,0.32856368]
[1743540775341,0.28569904,609.53,608.71,0.32856368]
[1743540777934,0.726,609.55,608.71,0.32856368]
[1743540778344,0.28569435,609.54,608.71,0.32856368]
[1743540778942,0.30166563,609.53,608.71,0.32856368]
[1743540780647,0.30166563,609.53,608.71,1.56165803]
[1743540781046,0.30166563,609.52,608.71,1.56165803]
[1743540781244,0.28568145,609.52,608.71,1.56165803]
[1743540781444,0.30166585,609.51,608.71,1.56165803]
[1743540781645,0.28568145,609.52,608.71,1.56165803]
[1743540781944,0.30166577,609.51,608.71,1.56165803]
[1743540782244,1.15166577,609.51,608.71,1.56165803]
[1743540782448,0.85,609.51,608.71,1.56165803]
[1743540782644,0.85,609.51,608.73,1.23309435]
[1743540784445,0.28568262,609.5,608.73,1.23309435]
[1743540784850,0.28568262,609.5,608.74,1.23309435]
[1743540786952,0.85,609.51,608.71,0.32856368]
[1743540787146,0.836,609.49,608.71,0.32856368]
[1743540790353,0.28576004,609.48,608.71,0.32856368]
[1743540793054,0.30171639,609.47,608.71,0.32856368]
[1743540793355,0.30171639,609.46,608.71,0.32856368]
[1743540796257,0.30171639,609.45,608.71,0.32856368]
[1743540796459,0.28572953,609.45,608.71,0.32856368]
[1743540799060,0.836,609.49,608.71,0.32856368]
[1743540799265,0.30171737,609.48,608.71,0.32856368]
[1743540800163,0.836,609.49,608.71,0.32856368]
[1743540800360,0.28573188,609.47,608.71,0.32856368]
[1743540800666,0.30171614,609.46,608.71,0.32856368]
[1743540801865,0.28573188,609.47,608.71,0.32856368]
[1743540802067,0.30171825,609.46,608.71,0.32856368]
[1743540802262,0.836,609.49,608.71,0.32856368]
[1743540802467,0.28573423,609.46,608.71,0.32856368]
[1743540802861,0.30171938,609.45,608.71,0.32856368]
[1743540804865,0.28573423,609.46,608.71,0.32856368]
[1743540808069,0.85,609.51,608.71,0.32856368]
[1743540808270,0.848,609.59,608.71,0.32856368]
[1743540808471,0.28573188,609.45,608.71,0.32856368]
[1743540808667,0.848,609.59,608.71,0.32856368]
[1743540809471,0.713,609.58,608.71,0.32856368]
[1743540810072,0.28572132,609.57,608.71,0.32856368]
[1743540810967,0.713,609.58,608.71,0.32856368]
[1743540811271,0.28571898,609.56,608.71,0.32856368]
[1743540812374,0.888,609.55,608.71,0.32856368]
[1743540814576,0.28569904,609.54,608.71,0.32856368]
[1743540816577,0.792,609.53,608.71,0.32856368]
[1743540817379,0.2856791,609.52,608.71,0.32856368]
[1743540819878,0.792,609.53,608.71,0.32856368]
[1743540820284,0.28568028,609.51,608.71,0.32856368]
[1743540825987,0.792,609.53,608.71,0.32856368]
[1743540826487,0.2857706,609.5,608.71,0.32856368]
[1743540826886,1.193,609.49,608.71,0.32856368]
[1743540832293,0.28573892,609.48,608.71,0.32856368]
[1743540835096,1.193,609.49,608.71,0.32856368]
[1743540835493,0.28574126,609.47,608.71,0.32856368]
[1743540838098,1.193,609.49,608.71,0.32856368]
[1743540838498,0.28573188,609.46,608.71,0.32856368]
[1743540841997,0.991,609.45,608.71,0.32856368]
[1743540843799,1.964,609.45,608.71,0.32856368]
[1743540844499,0.28573305,609.44,608.71,0.32856368]
[1743540846999,1.964,609.45,608.71,0.32856368]
[1743540853601,1.964,609.45,608.72,1.23309435]
[1743540853803,2.743,609.45,608.72,1.23309435]
[1743540854206,2.743,609.45,608.73,0.32855288]
[1743540856106,2.743,609.45,608.77,1.23309435]
[1743540856308,2.743,609.45,608.78,0.3285259]
[1743540887816,2.743,609.45,608.78,1.56162025]
[1743540889525,2.743,609.45,608.82,1.23309435]
[1743540889723,2.743,609.45,608.83,0.32849892]
[1743540892726,2.743,609.45,608.84,1.23309435]
[1743540892932,2.743,609.45,608.85,0.32848813]
[1743540895231,2.743,609.45,608.87,1.23309435]
[1743540897828,2.743,609.45,608.88,1.23309435]
[1743540899542,2.743,609.45,608.85,0.32848813]
[1743540938868,2.743,609.45,608.89,1.23309435]
[1743540943275,2.743,609.45,608.91,1.23309435]
[1743540945474,2.743,609.45,608.92,1.23309435]
[1743540947378,2.743,609.45,608.94,1.23309435]
[1743540949275,2.743,609.45,608.92,1.23309435]
[1743540952482,2.743,609.45,608.9,1.23309435]
[1743540955983,2.743,609.45,608.85,0.32848813]
[1743540955984,2.743,609.45,608.91,1.23309435]
[1743540957385,2.743,609.45,608.92,1.23309435]
[1743540959977,2.743,609.45,608.96,1.23309435]
[1743540962389,2.743,609.45,609.04,1.23309435]
[1743540962797,2.50824296,610.46,609.04,1.23309435]
[1743540962986,0.3015648,610.18,609.04,1.23309435]
[1743540963186,0.3015648,610.17,609.04,1.23309435]
[1743540963385,0.3015648,610.16,609.04,1.23309435]
[1743540963589,0.3015648,610.15,609.04,1.23309435]
[1743540963792,0.3015648,610.14,609.04,1.23309435]
[1743540963986,0.3015648,610.13,609.04,1.23309435]
[1743540964187,0.32777213,610.18,609.04,1.23309435]
[1743540964188,0.3015648,610.12,609.04,1.23309435]
[1743540964383,0.3015648,610.11,609.04,1.23309435]
[1743540964786,0.32777213,610.18,609.04,1.23309435]
[1743540964787,0.3015648,610.1,609.04,1.23309435]
[1743540964985,0.3015648,610.09,609.04,1.23309435]
[1743540965186,1.2825648,610.08,609.04,1.23309435]
[1743540965390,0.3015648,610.07,609.04,1.23309435]
[1743540965584,0.3015648,610.06,609.04,1.23309435]
[1743540965784,0.3015648,610.05,609.08,1.23309435]
[1743540965989,0.3015648,610.04,609.08,1.23309435]
[1743540966291,0.3015648,610.03,609.08,1.23309435]
[1743540966487,0.3015648,610.06,609.08,1.23309435]
[1743540967496,0.3015648,610.06,608.98,1.23309435]
[1743540969491,0.3015648,610.06,608.96,1.23309435]
[1743540970396,0.30158714,610.05,608.96,1.23309435]
[1743540970595,0.30158714,610.06,608.96,1.23309435]
[1743540970794,0.30158714,610.05,608.96,1.23309435]
[1743540970993,0.30158714,610.06,608.96,1.23309435]
[1743540971191,0.30158714,610.05,608.96,1.23309435]
[1743540971393,0.30158714,610.04,608.96,1.23309435]
[1743540971593,0.30158714,610.06,608.96,1.23309435]
[1743540971795,1.117,610.07,608.96,1.23309435]
[1743540971796,0.30158714,610.05,608.96,1.23309435]
[1743540971996,0.30158714,610.05,608.87,1.23309435]
[1743540971997,0.30158714,610.06,608.88,1.23309435]
[1743540973997,0.30158714,610.06,608.87,1.23309435]
[1743540975098,1.117,610.07,608.87,1.23309435]
[1743540975294,0.30158511,610.06,608.87,1.23309435]
[1743540976202,0.30158511,610.06,608.85,0.32848813]
[1743540976203,0.30158511,610.06,608.86,1.23309435]
[1743540978499,0.30158511,610.06,608.85,0.32848813]
[1743540979103,1.056,610.09,608.85,0.32848813]
[1743540979104,0.30158511,610.05,608.85,0.32848813]
[1743540979306,0.30158511,610.04,608.85,0.32848813]
[1743540979507,0.30158511,610.03,608.85,0.32848813]
[1743540979807,0.30158511,610.02,608.85,0.32848813]
[1743540980009,0.913,610.02,608.85,0.32848813]
[1743540980202,0.30158511,610.01,608.85,0.32848813]
[1743540982407,1.03,610.0,608.85,0.32848813]
[1743540982609,0.30158511,609.99,608.85,0.32848813]
[1743540984811,0.30162755,609.98,608.85,0.32848813]
[1743540985010,0.30162755,609.97,608.85,0.32848813]
[1743540985207,0.30162755,609.96,608.85,0.32848813]
[1743540985406,0.30162755,609.99,608.85,0.32848813]
[1743540985611,0.30162755,609.98,608.85,0.32848813]
[1743540985811,0.30162755,609.97,608.85,0.32848813]
[1743540986006,0.30162755,609.96,608.85,0.32848813]
[1743540986209,0.30162755,609.99,608.85,0.32848813]
[1743540986512,0.28562752,609.95,608.85,0.32848813]
[1743540986709,0.30162755,609.94,608.85,0.32848813]
[1743540988010,0.30162811,609.93,608.85,0.32848813]
[1743540988212,1.03,610.0,608.85,0.32848813]
[1743540988213,0.30162811,609.94,608.85,0.32848813]
[1743540988413,0.58726735,609.93,608.85,0.32848813]
[1743540988612,0.30162811,609.92,608.85,0.32848813]
[1743540989405,0.28563924,609.93,608.85,0.32848813]
[1743540989607,0.30162781,609.92,608.85,0.32848813]
[1743540991108,0.28563924,609.93,608.85,0.32848813]
[1743540991307,0.30162787,609.92,608.85,0.32848813]
[1743540992811,0.30162787,609.91,608.85,0.32848813]
[1743540993010,0.30162787,609.92,608.85,0.32848813]
[1743540994314,0.30162787,609.99,608.85,0.32848813]
[1743540994616,0.2856451,609.91,608.85,0.32848813]
[1743540994816,0.30162787,609.9,608.85,0.32848813]
[1743540995012,0.30162787,609.99,608.85,0.32848813]
[1743540995217,0.30162787,609.98,608.85,0.32848813]
[1743540995414,0.30162787,609.99,608.85,0.32848813]
[1743540995613,0.58726594,609.98,608.85,0.32848813]
[1743540995819,1.38762787,609.97,608.85,0.32848813]
[1743540996019,0.30162787,609.96,608.85,0.32848813]
[1743540997616,0.28563924,609.95,608.85,0.32848813]
[1743540997819,0.30162787,609.94,608.85,0.32848813]
[1743541003521,0.28563338,609.93,608.85,0.32848813]
[1743541003716,0.30162787,609.92,608.85,0.32848813]
[1743541006218,0.30162787,609.94,608.85,0.32848813]
[1743541006415,0.28564041,609.91,608.85,0.32848813]
[1743541006719,0.30162787,609.9,608.85,0.32848813]
[1743541007323,0.28564041,609.91,608.85,0.32848813]
[1743541007324,0.30162508,609.89,608.85,0.32848813]
[1743541007517,0.30162508,609.88,608.85,0.32848813]
[1743541007715,0.30162508,609.9,608.85,0.32848813]
[1743541007916,0.30162508,609.89,608.85,0.32848813]